[Event "GrandPrix_30.05"]
[Site "Chess.com"]
[Date "2020.05.30"]
[Round "2"]
[White "Khvicha_Supatashvili"]
[Black "IriBu"]
[Result "0-1"]
[WhiteElo "2105"]
[BlackElo "2354"]
[TimeControl "600+2"]
[EndTime "8:55:00 PDT"]
[Termination "IriBu won by resignation"]

1. d4 {[%clk 0:10:00.6]} 1... Nf6 {[%clk 0:10:00.4]} 2. c4 {[%clk 0:10:01.3]}
2... e6 {[%clk 0:10:01.5]} 3. Nf3 {[%clk 0:10:02.1]} 3... b6 {[%clk 0:10:02.4]}
4. e3 {[%clk 0:09:59.2]} 4... Bb7 {[%clk 0:10:03.3]} 5. Bd3 {[%clk 0:10:00]}
5... d5 {[%clk 0:10:04.3]} 6. Nc3 {[%clk 0:10:01.3]} 6... Nbd7 {[%clk
0:10:04.7]} 7. O-O {[%clk 0:09:59.4]} 7... dxc4 {[%clk 0:10:05.6]} 8. Bxc4
{[%clk 0:09:59.9]} 8... a6 {[%clk 0:10:07]} 9. a4 {[%clk 0:09:59.4]} 9... Bb4
{[%clk 0:09:55.8]} 10. Qe2 {[%clk 0:09:57.3]} 10... O-O {[%clk 0:09:53.8]} 11.
Rd1 {[%clk 0:09:54.8]} 11... Qe7 {[%clk 0:09:45.6]} 12. Bd2 {[%clk 0:09:43.5]}
12... c5 {[%clk 0:09:38.8]} 13. Rac1 {[%clk 0:09:37.9]} 13... Rfd8 {[%clk
0:09:32.7]} 14. h3 {[%clk 0:09:36.3]} 14... h6 {[%clk 0:09:32.8]} 15. Be1 {[%clk
0:09:15]} 15... cxd4 {[%clk 0:09:13.2]} 16. exd4 {[%clk 0:08:52.4]} 16... Bxc3
{[%clk 0:09:03.2]} 17. bxc3 {[%clk 0:08:48]} 17... Nd5 {[%clk 0:08:51.1]} 18.
Bd2 {[%clk 0:08:41.5]} 18... Qf6 {[%clk 0:08:37.4]} 19. Qe4 {[%clk 0:08:14.5]}
19... Rab8 {[%clk 0:08:26.6]} 20. Bd3 {[%clk 0:08:12.4]} 20... Nf8 {[%clk
0:08:15.2]} 21. Qg4 {[%clk 0:08:12.4]} 21... Rbc8 {[%clk 0:07:57.8]} 22. Ne5
{[%clk 0:07:52.8]} 22... Ne7 {[%clk 0:07:47.4]} 23. Re1 {[%clk 0:07:35.9]} 23...
Nf5 {[%clk 0:07:32.5]} 24. Rb1 {[%clk 0:07:20.6]} 24... Bc6 {[%clk 0:06:08.8]}
25. Bxa6 {[%clk 0:07:10.9]} 25... Bxa4 {[%clk 0:05:59.5]} 26. Bxc8 {[%clk
0:07:10.2]} 26... Rxc8 {[%clk 0:06:00.4]} 27. Rxb6 {[%clk 0:07:08.8]} 27... Nd7
{[%clk 0:05:45.5]} 28. Rb7 {[%clk 0:07:04.8]} 28... Nxe5 {[%clk 0:05:39.4]} 29.
dxe5 {[%clk 0:07:05.4]} 29... Qd8 {[%clk 0:05:33]} 30. Qxa4 {[%clk 0:06:46.7]}
30... Qxd2 {[%clk 0:05:33.2]} 31. Reb1 {[%clk 0:06:38.2]} 31... Rxc3 {[%clk
0:05:07.7]} 32. Qd1 {[%clk 0:05:55.1]} 32... Qf4 {[%clk 0:04:49.4]} 33. Qe2
{[%clk 0:05:38.2]} 33... Nd4 {[%clk 0:04:18.5]} 34. Qg4 {[%clk 0:04:35.3]} 34...
Qxe5 {[%clk 0:04:16.1]} 35. Rd1 {[%clk 0:04:33.9]} 35... Nf5 {[%clk 0:03:52.4]}
36. Qh5 {[%clk 0:04:16.2]} 36... g6 {[%clk 0:03:28.9]} 37. Qg4 {[%clk
0:04:15.1]} 37... Kg7 {[%clk 0:03:23]} 38. Qa4 {[%clk 0:03:58.6]} 38... h5
{[%clk 0:02:26.9]} 39. Qd7 {[%clk 0:03:42.5]} 39... Qf6 {[%clk 0:02:18.4]} 40.
Rb8 {[%clk 0:03:16.8]} 40... Nh6 {[%clk 0:01:36.2]} 41. Qe8 {[%clk 0:03:11.6]}
41... Kh7 {[%clk 0:01:36]} 42. Rb7 {[%clk 0:02:48.6]} 42... Rc2 {[%clk
0:01:31.5]} 43. Rf1 {[%clk 0:02:47.8]} 43... Qf4 {[%clk 0:01:20.9]} 44. Qxe6
{[%clk 0:02:34.4]} 44... Rc1 {[%clk 0:01:11.6]} 45. Qe2 {[%clk 0:02:32.8]} 45...
Rxf1+ {[%clk 0:01:04.1]} 46. Qxf1 {[%clk 0:02:32.1]} 46... Qf6 {[%clk
0:01:00.5]} 47. Qd1 {[%clk 0:02:24.1]} 47... Qc6 {[%clk 0:00:56.6]} 48. Re7
{[%clk 0:02:19.6]} 48... Qf6 {[%clk 0:00:56.3]} 49. Rd7 {[%clk 0:02:19]} 49...
Qe5 {[%clk 0:00:53.1]} 50. Qd2 {[%clk 0:02:15.8]} 50... Qa1+ {[%clk 0:00:52.7]}
51. Qd1 {[%clk 0:02:13.9]} 51... Qe5 {[%clk 0:00:53.6]} 52. Rd2 {[%clk
0:02:11.1]} 52... Qf6 {[%clk 0:00:52]} 53. Qb3 {[%clk 0:02:04.4]} 53... Qa1+
{[%clk 0:00:51.3]} 54. Rd1 {[%clk 0:02:05.5]} 54... Qe5 {[%clk 0:00:52.5]} 55.
Qf3 {[%clk 0:02:04.9]} 55... Qb2 {[%clk 0:00:49.1]} 56. g3 {[%clk 0:02:04.7]}
56... Qe5 {[%clk 0:00:48.2]} 57. Kg2 {[%clk 0:02:05.1]} 57... Nf5 {[%clk
0:00:45]} 58. Rd7 {[%clk 0:02:03.9]} 58... Qe6 {[%clk 0:00:44.5]} 59. Qd5 {[%clk
0:02:03.1]} 59... Qxd5+ {[%clk 0:00:41.4]} 60. Rxd5 {[%clk 0:02:03.8]} 60... Nh6
{[%clk 0:00:38.7]} 61. Kf3 {[%clk 0:02:04]} 61... Kg7 {[%clk 0:00:40.1]} 62. Kf4
{[%clk 0:02:04.4]} 62... Kf6 {[%clk 0:00:40.8]} 63. Ra5 {[%clk 0:02:02.9]} 63...
Kg7 {[%clk 0:00:36.1]} 64. Kg5 {[%clk 0:02:00.6]} 64... f6+ {[%clk 0:00:36.7]}
65. Kf4 {[%clk 0:02:01.2]} 65... g5+ {[%clk 0:00:38]} 66. Ke4 {[%clk 0:02:01.6]}
66... Kg6 {[%clk 0:00:39.4]} 67. Ra8 {[%clk 0:02:01]} 67... Nf7 {[%clk
0:00:21.6]} 68. Rg8+ {[%clk 0:01:59.2]} 68... Kh7 {[%clk 0:00:22.3]} 69. Rb8
{[%clk 0:01:56.8]} 69... Kg6 {[%clk 0:00:23]} 70. Kd5 {[%clk 0:01:56.8]} 70...
Kf5 {[%clk 0:00:19.1]} 71. Rh8 {[%clk 0:01:51.9]} 71... Nxh8 {[%clk 0:00:16.7]}
72. Kd6 {[%clk 0:01:46.9]} 72... h4 {[%clk 0:00:17]} 73. gxh4 {[%clk 0:01:46.1]}
73... gxh4 {[%clk 0:00:17.7]} 74. Ke7 {[%clk 0:01:47]} 74... Ng6+ {[%clk
0:00:19]} 75. Kf7 {[%clk 0:01:47.7]} 75... Nf4 {[%clk 0:00:20]} 0-1

[Event "GrandPrix_30.05"]
[Site "Chess.com"]
[Date "2020.05.30"]
[Round "2"]
[White "DaVinci81"]
[Black "BairaKovanova"]
[Result "1-0"]
[WhiteElo "2548"]
[BlackElo "2165"]
[TimeControl "600+2"]
[EndTime "8:55:01 PDT"]
[Termination "DaVinci81 won by resignation"]

1. d4 {[%clk 0:10:01.6]} 1... Nf6 {[%clk 0:09:58.9]} 2. c4 {[%clk 0:10:02.4]}
2... e6 {[%clk 0:09:59.6]} 3. Nc3 {[%clk 0:10:00]} 3... Bb4 {[%clk 0:09:59.7]}
4. e3 {[%clk 0:10:00.4]} 4... O-O {[%clk 0:09:58.9]} 5. Nf3 {[%clk 0:09:59.2]}
5... d5 {[%clk 0:09:59.2]} 6. Bd2 {[%clk 0:09:58.1]} 6... b6 {[%clk 0:09:21.4]}
7. cxd5 {[%clk 0:09:57.8]} 7... Nxd5 {[%clk 0:09:11.5]} 8. Nxd5 {[%clk
0:09:44.3]} 8... Bxd2+ {[%clk 0:09:09.7]} 9. Nxd2 {[%clk 0:09:43.5]} 9... Qxd5
{[%clk 0:09:05.5]} 10. Be2 {[%clk 0:09:37.6]} 10... c6 {[%clk 0:08:30.3]} 11.
Bf3 {[%clk 0:09:19.7]} 11... Qd6 {[%clk 0:08:17.4]} 12. O-O {[%clk 0:09:13.8]}
12... Ba6 {[%clk 0:08:02]} 13. Re1 {[%clk 0:09:14.4]} 13... Nd7 {[%clk 0:07:57]}
14. Rc1 {[%clk 0:09:03.8]} 14... Bb7 {[%clk 0:07:45]} 15. Qa4 {[%clk 0:08:55.1]}
15... b5 {[%clk 0:06:53.8]} 16. Qa5 {[%clk 0:08:41.1]} 16... Nb6 {[%clk
0:06:23.3]} 17. Ne4 {[%clk 0:08:36.9]} 17... Qe7 {[%clk 0:06:24.2]} 18. Nc5
{[%clk 0:08:37.2]} 18... Nc4 {[%clk 0:05:58]} 19. Qc3 {[%clk 0:08:34.5]} 19...
Rac8 {[%clk 0:05:34.4]} 20. b3 {[%clk 0:08:33.3]} 20... Nd6 {[%clk 0:05:28.2]}
21. Rc2 {[%clk 0:08:23.7]} 21... Ba8 {[%clk 0:05:26.6]} 22. Rec1 {[%clk
0:08:23.2]} 22... h6 {[%clk 0:05:16.9]} 23. Qb4 {[%clk 0:08:18.3]} 23... Nf5
{[%clk 0:04:43.9]} 24. Be4 {[%clk 0:07:58]} 24... Nh4 {[%clk 0:04:19.5]} 25. g3
{[%clk 0:07:56.1]} 25... Nf5 {[%clk 0:03:59]} 26. Qc3 {[%clk 0:07:39.4]} 26...
Nd6 {[%clk 0:03:42.5]} 27. Bg2 {[%clk 0:07:39.7]} 27... Nf5 {[%clk 0:03:26.6]}
28. a4 {[%clk 0:07:35.3]} 28... Qd8 {[%clk 0:03:09.3]} 29. Ra2 {[%clk
0:07:27.3]} 29... Ne7 {[%clk 0:02:45.2]} 30. e4 {[%clk 0:07:21.7]} 30... a5
{[%clk 0:02:34]} 31. Rd1 {[%clk 0:07:07.4]} 31... b4 {[%clk 0:02:33.2]} 32. Qe3
{[%clk 0:07:06.6]} 32... e5 {[%clk 0:02:15.4]} 33. Rad2 {[%clk 0:07:06.1]} 33...
exd4 {[%clk 0:01:24.3]} 34. Rxd4 {[%clk 0:07:06.4]} 34... Qe8 {[%clk 0:01:25.4]}
35. Qd2 {[%clk 0:06:46.2]} 35... Kh8 {[%clk 0:00:39]} 36. f4 {[%clk 0:06:39.6]}
36... f5 {[%clk 0:00:30.9]} 37. e5 {[%clk 0:06:08.3]} 37... Nd5 {[%clk
0:00:29.8]} 38. Bxd5 {[%clk 0:06:01]} 38... cxd5 {[%clk 0:00:30.4]} 39. Rc1
{[%clk 0:05:54.1]} 39... Qe7 {[%clk 0:00:22.4]} 40. Nd3 {[%clk 0:05:34]} 40...
Qa7 {[%clk 0:00:22.8]} 41. Qf2 {[%clk 0:04:50.4]} 41... Rc3 {[%clk 0:00:16.9]}
42. Rd1 {[%clk 0:04:34.9]} 42... Rfc8 {[%clk 0:00:16.1]} 43. e6 {[%clk
0:04:18.5]} 43... Rc2 {[%clk 0:00:12.7]} 44. Qe3 {[%clk 0:04:17.5]} 44... Re2
{[%clk 0:00:13.6]} 45. Qxe2 {[%clk 0:04:18.2]} 45... Qxd4+ {[%clk 0:00:14.9]}
46. Nf2 {[%clk 0:04:19.7]} 46... Qf6 {[%clk 0:00:14.7]} 47. Qa6 {[%clk
0:04:10.8]} 47... Re8 {[%clk 0:00:14.5]} 48. Re1 {[%clk 0:04:07.5]} 48... d4
{[%clk 0:00:15.6]} 49. Qb5 {[%clk 0:04:01.1]} 49... Qe7 {[%clk 0:00:16.6]} 50.
Nd3 {[%clk 0:03:57]} 50... Rd8 {[%clk 0:00:16.6]} 51. Ne5 {[%clk 0:03:55.6]}
51... Qxe6 {[%clk 0:00:17.3]} 52. Qxa5 {[%clk 0:03:55.1]} 52... Qd5 {[%clk
0:00:16.2]} 53. Qxd5 {[%clk 0:03:54.2]} 53... Bxd5 {[%clk 0:00:17.1]} 54. Rb1
{[%clk 0:03:39.8]} 54... d3 {[%clk 0:00:16.9]} 55. Kf2 {[%clk 0:03:32.8]} 55...
d2 {[%clk 0:00:15.9]} 56. Ke3 {[%clk 0:03:14.7]} 56... Bxb3 {[%clk 0:00:16.6]}
57. Rd1 {[%clk 0:03:16.1]} 57... Bxd1 {[%clk 0:00:14.3]} 58. Nf7+ {[%clk
0:03:17.5]} 58... Kg8 {[%clk 0:00:15.5]} 59. Nxd8 {[%clk 0:03:18.4]} 59... Bxa4
{[%clk 0:00:17.1]} 60. Kxd2 {[%clk 0:03:19.8]} 60... Bd7 {[%clk 0:00:16.3]} 61.
Nb7 {[%clk 0:03:19.5]} 61... Be6 {[%clk 0:00:16.5]} 62. Nc5 {[%clk 0:03:19.5]}
62... Bd5 {[%clk 0:00:17.6]} 63. Nd3 {[%clk 0:03:19.5]} 63... b3 {[%clk
0:00:18]} 64. Kc3 {[%clk 0:03:20.9]} 64... Kf7 {[%clk 0:00:17.7]} 65. Nc5 {[%clk
0:03:21.5]} 65... Ke7 {[%clk 0:00:17.3]} 66. Nxb3 {[%clk 0:03:21.8]} 66... Kd6
{[%clk 0:00:16.1]} 67. Nd4 {[%clk 0:03:19.3]} 67... Be4 {[%clk 0:00:16.9]} 68.
Kc4 {[%clk 0:03:20.6]} 68... g5 {[%clk 0:00:17.5]} 69. Ne2 {[%clk 0:03:19.9]}
69... gxf4 {[%clk 0:00:17.3]} 70. gxf4 {[%clk 0:03:17.7]} 70... Bf3 {[%clk
0:00:17]} 71. Ng3 {[%clk 0:03:17.5]} 71... Ke6 {[%clk 0:00:16.4]} 72. Kc5 {[%clk
0:03:14.3]} 72... h5 {[%clk 0:00:17.3]} 73. h4 {[%clk 0:03:14.7]} 73... Bg4
{[%clk 0:00:16.1]} 74. Nf1 {[%clk 0:03:15.3]} 74... Be2 {[%clk 0:00:16.3]} 75.
Ne3 {[%clk 0:03:16.6]} 75... Bd3 {[%clk 0:00:17]} 76. Nd1 {[%clk 0:03:14.6]}
76... Be2 {[%clk 0:00:16.1]} 77. Nb2 {[%clk 0:03:13.9]} 77... Bf3 {[%clk
0:00:16.4]} 78. Nc4 {[%clk 0:03:10.5]} 78... Bg4 {[%clk 0:00:16]} 79. Ne3 {[%clk
0:03:06.1]} 79... Bf3 {[%clk 0:00:16.6]} 80. Nc2 {[%clk 0:03:07.1]} 80... Bg4
{[%clk 0:00:16.4]} 81. Nd4+ {[%clk 0:03:08.2]} 81... Kf6 {[%clk 0:00:17.3]} 82.
Kd6 {[%clk 0:03:09.4]} 82... Bf3 {[%clk 0:00:18]} 83. Nb5 {[%clk 0:03:09.6]}
83... Bg4 {[%clk 0:00:18.2]} 84. Nc3 {[%clk 0:03:11]} 84... Bf3 {[%clk
0:00:18.1]} 85. Nd5+ {[%clk 0:03:11.8]} 85... Kg6 {[%clk 0:00:14.4]} 86. Ke5
{[%clk 0:03:12.8]} 86... Bg4 {[%clk 0:00:11.8]} 87. Ne7+ {[%clk 0:03:13.4]}
87... Kf7 {[%clk 0:00:12.9]} 88. Nxf5 {[%clk 0:03:14.4]} 88... Bd1 {[%clk
0:00:12.6]} 89. Nd6+ {[%clk 0:03:13.2]} 89... Kg7 {[%clk 0:00:11.6]} 90. Kf5
{[%clk 0:03:12]} 90... Kh6 {[%clk 0:00:11.7]} 91. Kf6 {[%clk 0:03:11.4]} 91...
Kh7 {[%clk 0:00:10.1]} 92. Kg5 {[%clk 0:03:11.9]} 1-0

[Event "GrandPrix_30.05"]
[Site "Chess.com"]
[Date "2020.05.30"]
[Round "2"]
[White "KuzubovYuriy"]
[Black "Olghita64"]
[Result "1-0"]
[WhiteElo "2433"]
[BlackElo "1998"]
[TimeControl "600+2"]
[EndTime "8:55:02 PDT"]
[Termination "KuzubovYuriy won on time"]

1. d4 {[%clk 0:10:01.9]} 1... d5 {[%clk 0:10:00.1]} 2. c4 {[%clk 0:10:02.6]}
2... c6 {[%clk 0:10:00.5]} 3. e3 {[%clk 0:10:03.2]} 3... Bf5 {[%clk 0:09:51.6]}
4. Nc3 {[%clk 0:10:01.8]} 4... e6 {[%clk 0:09:51.9]} 5. Nge2 {[%clk 0:09:57.6]}
5... h6 {[%clk 0:09:49.6]} 6. Ng3 {[%clk 0:08:41.1]} 6... Bg6 {[%clk 0:09:42.7]}
7. Qb3 {[%clk 0:08:38.6]} 7... Qb6 {[%clk 0:09:39.2]} 8. c5 {[%clk 0:08:39.5]}
8... Qc7 {[%clk 0:09:36.6]} 9. e4 {[%clk 0:08:28]} 9... Nd7 {[%clk 0:09:27]} 10.
exd5 {[%clk 0:06:32.7]} 10... exd5 {[%clk 0:09:26]} 11. Be2 {[%clk 0:06:25.9]}
11... b6 {[%clk 0:08:50.6]} 12. cxb6 {[%clk 0:06:08]} 12... axb6 {[%clk
0:08:50.9]} 13. O-O {[%clk 0:05:36.8]} 13... Bd6 {[%clk 0:08:40.9]} 14. Bd2
{[%clk 0:04:48.7]} 14... Ngf6 {[%clk 0:08:29.3]} 15. Rac1 {[%clk 0:04:39.5]}
15... Qa7 {[%clk 0:07:34.6]} 16. Bb5 {[%clk 0:02:38.1]} 16... Rc8 {[%clk
0:06:10.8]} 17. Bxc6 {[%clk 0:00:53.3]} 17... Rxc6 {[%clk 0:06:05.8]} 18. Nb5
{[%clk 0:00:52.1]} 18... Qb7 {[%clk 0:04:29]} 19. Rxc6 {[%clk 0:00:51.9]} 19...
Qxc6 {[%clk 0:04:29.7]} 20. Rc1 {[%clk 0:00:52.1]} 20... Bc5 {[%clk 0:04:10.8]}
21. dxc5 {[%clk 0:00:49.5]} 21... bxc5 {[%clk 0:04:08.5]} 22. Qe3+ {[%clk
0:00:43]} 22... Ne4 {[%clk 0:03:20.6]} 23. Nxe4 {[%clk 0:00:41.2]} 23... dxe4
{[%clk 0:02:27.8]} 24. a4 {[%clk 0:00:41.6]} 24... O-O {[%clk 0:02:26]} 25. Bc3
{[%clk 0:00:41.4]} 25... Nb6 {[%clk 0:01:38.2]} 26. b3 {[%clk 0:00:42.5]} 26...
Nd5 {[%clk 0:01:36.4]} 27. Qd2 {[%clk 0:00:39.5]} 27... Qe6 {[%clk 0:01:22.2]}
28. Bb2 {[%clk 0:00:30.6]} 28... Nb4 {[%clk 0:01:06.4]} 29. Qc3 {[%clk
0:00:19.3]} 29... f6 {[%clk 0:01:04.3]} 30. Qc4 {[%clk 0:00:18.9]} 30... Bf7
{[%clk 0:00:57.9]} 31. Qxe6 {[%clk 0:00:18.7]} 31... Bxe6 {[%clk 0:00:58.9]} 32.
Rxc5 {[%clk 0:00:15.3]} 32... Nd3 {[%clk 0:00:56.5]} 33. Rc6 {[%clk 0:00:14.4]}
33... Bxb3 {[%clk 0:00:52.5]} 34. Ba3 {[%clk 0:00:11.4]} 34... Rd8 {[%clk
0:00:46]} 35. Nc3 {[%clk 0:00:10]} 35... Ra8 {[%clk 0:00:31.6]} 36. h3 {[%clk
0:00:06.6]} 36... Bxa4 {[%clk 0:00:29.2]} 37. Rc7 {[%clk 0:00:07]} 37... Bb3
{[%clk 0:00:22.1]} 38. Bd6 {[%clk 0:00:06.5]} 38... Ra1+ {[%clk 0:00:20.6]} 39.
Kh2 {[%clk 0:00:07.7]} 39... Nxf2 {[%clk 0:00:20.3]} 40. Nb5 {[%clk 0:00:05.8]}
40... e3 {[%clk 0:00:13.7]} 41. Nd4 {[%clk 0:00:06.4]} 41... Bd5 {[%clk
0:00:10.9]} 42. Nf5 {[%clk 0:00:06.4]} 42... Rh1+ {[%clk 0:00:07]} 43. Kg3
{[%clk 0:00:07.3]} 43... Ne4+ {[%clk 0:00:08]} 44. Kf4 {[%clk 0:00:07.1]} 44...
Nxd6 {[%clk 0:00:05.6]} 45. Nxe3 {[%clk 0:00:05.6]} 45... Nf7 {[%clk 0:00:04.2]}
46. Nxd5 {[%clk 0:00:06.1]} 46... Rf1+ {[%clk 0:00:04.7]} 47. Kg3 {[%clk
0:00:07]} 47... Ne5 {[%clk 0:00:04.6]} 48. h4 {[%clk 0:00:07.6]} 48... h5 {[%clk
0:00:04.8]} 49. Nf4 {[%clk 0:00:08.2]} 49... g6 {[%clk 0:00:04.6]} 50. Nd5
{[%clk 0:00:09.1]} 1-0

[Event "GrandPrix_30.05"]
[Site "Chess.com"]
[Date "2020.05.30"]
[Round "2"]
[White "LazovT"]
[Black "Micki-taryan"]
[Result "0-1"]
[WhiteElo "2140"]
[BlackElo "2536"]
[TimeControl "600+2"]
[EndTime "8:55:04 PDT"]
[Termination "Micki-taryan won by resignation"]

1. e4 {[%clk 0:10:01.9]} 1... e6 {[%clk 0:09:58.5]} 2. d4 {[%clk 0:10:01.5]}
2... d5 {[%clk 0:10:00.4]} 3. Bd3 {[%clk 0:10:01.7]} 3... dxe4 {[%clk
0:09:56.9]} 4. Bxe4 {[%clk 0:10:03.6]} 4... Nf6 {[%clk 0:09:57]} 5. Bf3 {[%clk
0:10:04.8]} 5... c5 {[%clk 0:09:57.3]} 6. Ne2 {[%clk 0:10:03.3]} 6... Nc6 {[%clk
0:09:57.7]} 7. Be3 {[%clk 0:10:03.1]} 7... cxd4 {[%clk 0:09:54.2]} 8. Nxd4
{[%clk 0:10:05]} 8... Ne5 {[%clk 0:09:55.6]} 9. Nc3 {[%clk 0:10:03.9]} 9... a6
{[%clk 0:09:47.7]} 10. Qe2 {[%clk 0:10:02.9]} 10... Nxf3+ {[%clk 0:09:41]} 11.
gxf3 {[%clk 0:10:03.3]} 11... Bd7 {[%clk 0:09:02.6]} 12. O-O-O {[%clk
0:09:55.9]} 12... Rc8 {[%clk 0:09:01.4]} 13. Kb1 {[%clk 0:09:11.6]} 13... Qa5
{[%clk 0:08:16.5]} 14. Nb3 {[%clk 0:07:46.6]} 14... Qh5 {[%clk 0:08:16.3]} 15.
Bd4 {[%clk 0:07:47.6]} 15... Be7 {[%clk 0:07:46.9]} 16. Bxf6 {[%clk 0:07:14.5]}
16... gxf6 {[%clk 0:07:44.9]} 17. Ne4 {[%clk 0:07:14.8]} 17... Bc6 {[%clk
0:07:35.2]} 18. Rhe1 {[%clk 0:05:35.4]} 18... Kf8 {[%clk 0:07:14.4]} 19. Qd3
{[%clk 0:05:11.9]} 19... Rg8 {[%clk 0:06:44.8]} 20. Nd4 {[%clk 0:04:24.2]} 20...
Bd5 {[%clk 0:05:29.4]} 21. Nc3 {[%clk 0:03:20.1]} 21... Rg6 {[%clk 0:04:41.9]}
22. Nxd5 {[%clk 0:02:43.3]} 22... Qxd5 {[%clk 0:04:43.8]} 23. c3 {[%clk
0:02:44]} 23... Bc5 {[%clk 0:04:30.3]} 24. Qe2 {[%clk 0:01:46.2]} 24... Kg8
{[%clk 0:04:19.3]} 25. Ka1 {[%clk 0:01:17]} 25... Re8 {[%clk 0:04:01.7]} 26. Nb3
{[%clk 0:01:16.5]} 26... Qf5 {[%clk 0:03:58.7]} 27. Rd7 {[%clk 0:01:14.4]} 27...
b5 {[%clk 0:03:50.7]} 28. Rc7 {[%clk 0:01:02.5]} 28... Bf8 {[%clk 0:03:43.7]}
29. a3 {[%clk 0:00:53]} 29... Qf4 {[%clk 0:03:12.4]} 30. Ra7 {[%clk 0:00:42]}
30... Qa4 {[%clk 0:03:00.5]} 31. Ka2 {[%clk 0:00:43.2]} 31... f5 {[%clk
0:02:50.4]} 32. Rd1 {[%clk 0:00:43.4]} 32... Qc4 {[%clk 0:02:36.4]} 33. Qe3
{[%clk 0:00:16.8]} 33... e5 {[%clk 0:02:18.5]} 34. Rdd7 {[%clk 0:00:17.7]} 34...
Qe6 {[%clk 0:02:13.1]} 35. f4 {[%clk 0:00:12.9]} 35... e4 {[%clk 0:02:00.7]} 36.
Rxf7 {[%clk 0:00:06.9]} 36... a5 {[%clk 0:02:02.1]} 37. Rxf8+ {[%clk 0:00:03.4]}
37... Rxf8 {[%clk 0:02:04]} 38. Rxa5 {[%clk 0:00:04.8]} 38... Qc4 {[%clk
0:01:54.4]} 39. Qd4 {[%clk 0:00:05.3]} 39... Rg2 {[%clk 0:01:43.6]} 40. Qd7
{[%clk 0:00:04.8]} 40... Qf7 {[%clk 0:01:40.1]} 41. Qxb5 {[%clk 0:00:04.9]}
41... Rxf2 {[%clk 0:01:39.8]} 42. Qc5 {[%clk 0:00:05.8]} 42... Rxf4 {[%clk
0:01:34.5]} 43. Ra7 {[%clk 0:00:07.2]} 43... Qf6 {[%clk 0:01:16.5]} 44. Qc7
{[%clk 0:00:05.1]} 44... Rh4 {[%clk 0:01:17.9]} 45. Nd4 {[%clk 0:00:06.4]} 45...
Qf7+ {[%clk 0:01:18.6]} 46. Qxf7+ {[%clk 0:00:04.2]} 46... Rxf7 {[%clk
0:01:20.5]} 47. Rxf7 {[%clk 0:00:05.5]} 47... Kxf7 {[%clk 0:01:22.4]} 48. Nxf5
{[%clk 0:00:06.6]} 48... Rf4 {[%clk 0:01:21.9]} 49. Ng3 {[%clk 0:00:07.1]} 49...
e3 {[%clk 0:01:22]} 50. Kb3 {[%clk 0:00:08.4]} 50... Rf2 {[%clk 0:01:14.6]} 51.
a4 {[%clk 0:00:08.6]} 51... h5 {[%clk 0:01:16.1]} 52. a5 {[%clk 0:00:08.1]}
52... h4 {[%clk 0:01:17]} 53. a6 {[%clk 0:00:08.3]} 53... Rf6 {[%clk 0:00:54.7]}
54. a7 {[%clk 0:00:09.6]} 54... Ra6 {[%clk 0:00:56.1]} 55. Ne2 {[%clk
0:00:11.2]} 55... Rxa7 {[%clk 0:00:56.3]} 56. Kc4 {[%clk 0:00:12.4]} 56... Rd7
{[%clk 0:00:54.7]} 57. b4 {[%clk 0:00:11.1]} 57... Rd2 {[%clk 0:00:55.7]} 58.
Nf4 {[%clk 0:00:12]} 58... e2 {[%clk 0:00:51.1]} 59. Ng2 {[%clk 0:00:08.7]}
59... h3 {[%clk 0:00:51.2]} 60. Ne1 {[%clk 0:00:10]} 60... Rd1 {[%clk
0:00:52.6]} 61. Nf3 {[%clk 0:00:11.5]} 61... Rf1 {[%clk 0:00:53.2]} 0-1

[Event "GrandPrix_30.05"]
[Site "Chess.com"]
[Date "2020.05.30"]
[Round "2"]
[White "GM_LOADING"]
[Black "bernereremit"]
[Result "1-0"]
[WhiteElo "2319"]
[BlackElo "2101"]
[TimeControl "600+2"]
[EndTime "8:55:11 PDT"]
[Termination "GM_LOADING won on time"]

1. e4 {[%clk 0:10:01.9]} 1... c5 {[%clk 0:10:00.3]} 2. Nf3 {[%clk 0:10:01.8]}
2... d6 {[%clk 0:10:01.6]} 3. d4 {[%clk 0:10:03]} 3... cxd4 {[%clk 0:10:03.5]}
4. Nxd4 {[%clk 0:10:04.9]} 4... Nf6 {[%clk 0:10:04.8]} 5. Nc3 {[%clk 0:10:06.4]}
5... a6 {[%clk 0:10:06.4]} 6. h3 {[%clk 0:10:08]} 6... e6 {[%clk 0:10:05.6]} 7.
g4 {[%clk 0:10:08.5]} 7... Nfd7 {[%clk 0:10:07.1]} 8. Bg2 {[%clk 0:10:09.5]}
8... Be7 {[%clk 0:10:08.6]} 9. O-O {[%clk 0:10:10.6]} 9... O-O {[%clk
0:10:06.3]} 10. Be3 {[%clk 0:10:11.4]} 10... Nc6 {[%clk 0:10:07.6]} 11. f4
{[%clk 0:08:44.1]} 11... Nxd4 {[%clk 0:10:04.9]} 12. Qxd4 {[%clk 0:08:38.6]}
12... e5 {[%clk 0:10:06.8]} 13. Qd2 {[%clk 0:08:34.7]} 13... exf4 {[%clk
0:09:56.9]} 14. Bxf4 {[%clk 0:08:36.6]} 14... Ne5 {[%clk 0:09:53.8]} 15. Nd5
{[%clk 0:08:29.9]} 15... Be6 {[%clk 0:09:30.4]} 16. Rad1 {[%clk 0:07:22.2]}
16... Bxd5 {[%clk 0:07:07]} 17. exd5 {[%clk 0:07:24.1]} 17... Nc4 {[%clk
0:06:47.9]} 18. Qe2 {[%clk 0:05:36.6]} 18... Nxb2 {[%clk 0:04:21.8]} 19. Rb1
{[%clk 0:05:34.7]} 19... Na4 {[%clk 0:04:23.2]} 20. Rxb7 {[%clk 0:05:28.6]}
20... Bf6 {[%clk 0:04:24.2]} 21. Qd2 {[%clk 0:04:26.2]} 21... Nc5 {[%clk
0:04:16.7]} 22. Rbb1 {[%clk 0:04:27]} 22... h6 {[%clk 0:03:31.5]} 23. Qf2 {[%clk
0:04:02.9]} 23... Rc8 {[%clk 0:02:31.7]} 24. Qg3 {[%clk 0:03:29.4]} 24... Bh4
{[%clk 0:02:04.1]} 25. Qh2 {[%clk 0:03:22.6]} 25... Re8 {[%clk 0:01:36.3]} 26.
Bxd6 {[%clk 0:00:47.6]} 26... Ne4 {[%clk 0:01:35.5]} 27. Bxe4 {[%clk 0:00:44.2]}
27... Rxe4 {[%clk 0:01:37.4]} 28. Rb7 {[%clk 0:00:38.4]} 28... Bf6 {[%clk
0:01:05.5]} 29. Rd1 {[%clk 0:00:22.4]} 29... Qe8 {[%clk 0:00:39.5]} 30. Qf2
{[%clk 0:00:03.3]} 30... Re2 {[%clk 0:00:38.9]} 31. Qf3 {[%clk 0:00:04.7]} 31...
Rexc2 {[%clk 0:00:18.7]} 32. Rf1 {[%clk 0:00:03.8]} 32... Bd4+ {[%clk
0:00:17.7]} 33. Kh1 {[%clk 0:00:04.5]} 33... Bf6 {[%clk 0:00:18.1]} 34. g5
{[%clk 0:00:04.8]} 34... hxg5 {[%clk 0:00:18.4]} 35. Bg3 {[%clk 0:00:05.9]}
35... Rc1 {[%clk 0:00:18.7]} 36. d6 {[%clk 0:00:06.5]} 36... Rxf1+ {[%clk
0:00:18.4]} 37. Qxf1 {[%clk 0:00:08.4]} 37... Qe4+ {[%clk 0:00:18.6]} 38. Qg2
{[%clk 0:00:09.6]} 38... Qd3 {[%clk 0:00:10.5]} 39. Rc7 {[%clk 0:00:07.2]} 39...
Re8 {[%clk 0:00:09.4]} 40. d7 {[%clk 0:00:08.2]} 40... Rd8 {[%clk 0:00:09.6]}
41. Rc8 {[%clk 0:00:09.3]} 41... Qxd7 {[%clk 0:00:10.3]} 42. Rxd8+ {[%clk
0:00:10.7]} 42... Qxd8 {[%clk 0:00:11.5]} 43. Kh2 {[%clk 0:00:12.4]} 43... Qe7
{[%clk 0:00:11.8]} 44. Qc6 {[%clk 0:00:13]} 44... Be5 {[%clk 0:00:12.3]} 45.
Qa8+ {[%clk 0:00:12.2]} 45... Kh7 {[%clk 0:00:12.4]} 46. Qe4+ {[%clk 0:00:13.3]}
46... g6 {[%clk 0:00:07.5]} 47. Qxe5 {[%clk 0:00:14.7]} 47... Qa3 {[%clk
0:00:07.6]} 48. Qe2 {[%clk 0:00:15.5]} 48... Kg8 {[%clk 0:00:06.5]} 49. Be5
{[%clk 0:00:14.7]} 49... Qc5 {[%clk 0:00:04.6]} 50. Qe4 {[%clk 0:00:07.8]} 50...
Qf2+ {[%clk 0:00:04.9]} 51. Qg2 {[%clk 0:00:08.9]} 51... Qc5 {[%clk 0:00:04]}
52. Bg3 {[%clk 0:00:10]} 1-0